fUSD/lending_fUSD_20260511
["ID","MTS","AMOUNT","RATE_DAILY","PERIOD"]
[422021223,1778477450000,-187.07,0.00026371,7]
[422021217,1778477450000,-2000.0,0.00026352,2]
[422021221,1778477450000,-1395.36,0.00026355,2]
[422021215,1778477450000,-2000.0,0.00026352,2]
[422021236,1778477450000,-1345.9,0.00026449,2]
[422021219,1778477450000,-2076.0,0.00026352,2]
[422021218,1778477450000,-2000.0,0.00026352,2]
[422021220,1778477450000,-1345.9,0.00026354,2]
[422021222,1778477450000,-186.78,0.0002637,7]
[422021224,1778477450000,-518.378,0.00026375,2]
[422021225,1778477450000,-1223.0,0.00026375,2]
[422021228,1778477450000,-1345.9,0.00026386,7]
[422021229,1778477450000,-1395.36,0.00026386,7]
[422021231,1778477450000,-187.07,0.00026405,30]
[422021233,1778477450000,-1395.36,0.00026418,2]
[422021232,1778477450000,-1345.9,0.00026417,2]
[422021234,1778477450000,-186.78,0.00026438,2]
[422021235,1778477450000,-187.07,0.00026439,2]
[422021211,1778477450000,-1667.86657562,0.00026337,3]
[422021206,1778477450000,-187.07,0.00026303,30]
[422021230,1778477450000,-186.78,0.00026404,30]
[422021212,1778477450000,-282.0,0.00026349,2]
[422021214,1778477450000,-2000.0,0.00026352,2]
[422021180,1778477450000,-186.78,0.00026131,2]
[422021184,1778477450000,-186.78,0.00026165,7]
[422021181,1778477450000,-187.07,0.00026133,2]
[422021185,1778477450000,-1345.9,0.00026165,2]
[422021186,1778477450000,-1395.36,0.00026166,2]
[422021188,1778477450000,-1345.9,0.00026197,7]
[422021198,1778477450000,-186.78,0.00026268,7]
[422021200,1778477450000,-243.66472963,0.00026284,2]
[422021199,1778477450000,-187.07,0.00026269,7]
[422021187,1778477450000,-187.07,0.00026167,7]
[422021190,1778477450000,-186.78,0.00026199,30]
[422021192,1778477450000,-1345.9,0.00026228,2]
[422021176,1778477450000,-186.78,0.00026097,30]
[422021194,1778477450000,-186.78,0.00026234,2]
[422021191,1778477450000,-187.07,0.00026201,30]
[422021203,1778477450000,-775.9,0.00026296,2]
[422021205,1778477450000,-186.78,0.00026302,30]
[422021213,1778477450000,-2000.0,0.00026352,2]
[422021204,1778477450000,-450.0,0.00026301,2]
[422021201,1778477450000,-1345.9,0.00026291,7]
[422021202,1778477450000,-1395.36,0.00026292,7]
[422021193,1778477450000,-1395.36,0.00026229,2]
[422021196,1778477450000,-1345.9,0.0002626,2]
[422021189,1778477450000,-1395.36,0.00026198,7]
[422021195,1778477450000,-187.07,0.00026235,2]
[422021197,1778477450000,-1395.36,0.0002626,2]
[422021263,1778477451000,-521.39157575,0.00026849,2]
[422021261,1778477451000,-281.89852311,0.00026849,2]
[422021262,1778477451000,-500.0,0.00026849,2]
[422021265,1778477451000,-150.0,0.00026849,2]
[422021266,1778477451000,-209.18107405,0.00026849,2]
[422021267,1778477451000,-500.0,0.00026849,2]
[422021268,1778477451000,-500.0,0.00026849,2]
[422021264,1778477451000,-150.0,0.00026849,2]
[422021273,1778477451000,-150.0,0.00026849,2]
[422021269,1778477451000,-500.0,0.00026849,2]
[422021275,1778477451000,-150.0,0.00026849,2]
[422021272,1778477451000,-500.0,0.00026849,2]
[422021271,1778477451000,-150.0,0.00026849,2]
[422021259,1778477451000,-150.0,0.00026849,2]
[422021270,1778477451000,-500.0,0.00026849,2]
[422021277,1778477451000,-150.0,0.00026849,2]
[422021276,1778477451000,-500.0,0.00026849,2]
[422021286,1778477451000,-500.0,0.00026849,2]
[422021285,1778477451000,-537.28262258,0.00026849,2]
[422021274,1778477451000,-500.0,0.00026849,2]
[422021260,1778477451000,-150.0,0.00026849,2]
[422021255,1778477451000,-187.12,0.00026575,7]
[422021251,1778477451000,-1345.9,0.00026543,2]
[422021284,1778477451000,-500.0,0.00026849,2]
[422021241,1778477451000,-1395.36,0.00026481,7]
[422021237,1778477451000,-1395.36,0.00026449,2]
[422021239,1778477451000,-187.07,0.00026473,7]
[422021238,1778477451000,-186.78,0.00026472,7]
[422021240,1778477451000,-1345.9,0.0002648,7]
[422021242,1778477451000,-998.0,0.00026503,10]
[422021246,1778477451000,-187.07,0.00026507,30]
[422021243,1778477451000,-342.0,0.00026503,10]
[422021244,1778477451000,-1002.0,0.00026503,10]
[422021248,1778477451000,-1395.36,0.00026512,7]
[422021249,1778477451000,-186.78,0.00026541,2]
[422021247,1778477451000,-1345.9,0.00026512,7]
[422021250,1778477451000,-187.07,0.00026541,2]
[422021252,1778477451000,-1395.36,0.00026543,2]
[422021254,1778477451000,-1346.06,0.00026575,7]
[422021253,1778477451000,-186.91,0.00026575,7]
[422021256,1778477451000,-1395.49,0.00026575,7]
[422021257,1778477451000,-152.0,0.00026608,3]
[422021258,1778477451000,-150.57681341,0.00026849,2]
[422021245,1778477451000,-186.78,0.00026507,30]
[422021287,1778477451000,-500.0,0.00026849,2]
[422021279,1778477451000,-203.38924387,0.00026849,2]
[422021306,1778477451000,-201.90337944,0.0002739,2]
[422021303,1778477451000,-180.13254991,0.00027349,2]
[422021309,1778477451000,-370.36,0.00027397,7]
[422021310,1778477451000,-200.0,0.00027397,2]
[422021313,1778477451000,-151.0,0.00027397,2]
[422021317,1778477451000,-151.0,0.00027397,2]
[422021314,1778477451000,-151.0,0.00027397,2]
[422021315,1778477451000,-151.0,0.00027397,2]
[422021312,1778477451000,-303.77960895,0.00027397,7]
[422021323,1778477451000,-185.389633,0.00027397,2]
[422021320,1778477451000,-151.0,0.00027397,2]
[422021318,1778477451000,-151.0,0.00027397,2]
[422021319,1778477451000,-151.0,0.00027397,2]
[422021321,1778477451000,-151.0,0.00027397,2]
[422021322,1778477451000,-151.0,0.00027397,2]
[422021325,1778477451000,-151.0,0.00027397,2]
[422021326,1778477451000,-151.0,0.00027397,2]
[422021324,1778477451000,-1000.0,0.00027397,20]
[422021283,1778477451000,-500.0,0.00026849,2]
[422021305,1778477451000,-200.0,0.0002739,2]
[422021304,1778477451000,-500.0,0.0002737,2]
[422021316,1778477451000,-151.0,0.00027397,2]
[422021302,1778477451000,-500.0,0.0002727,2]
[422021282,1778477451000,-500.0,0.00026849,2]
[422021307,1778477451000,-152.6292004,0.00027396,2]
[422021280,1778477451000,-500.0,0.00026849,2]
[422021278,1778477451000,-500.0,0.00026849,2]
[422021281,1778477451000,-500.0,0.00026849,2]
[422021289,1778477451000,-257.47855207,0.00026849,2]
[422021291,1778477451000,-150.0,0.00026849,2]
[422021296,1778477451000,-150.0,0.00026849,2]
[422021292,1778477451000,-150.0,0.00026849,2]
[422021290,1778477451000,-150.0,0.00026849,2]
[422021299,1778477451000,-2000.0,0.00027,2]
[422021288,1778477451000,-500.0,0.00026849,2]
[422021294,1778477451000,-165.34226256,0.00026849,2]
[422021295,1778477451000,-400.0,0.00026849,2]
[422021298,1778477451000,-507.0,0.00026925,4]
[422021297,1778477451000,-1440.28793718,0.00026851,27]
[422021301,1778477451000,-1476.14135509,0.00027027,2]
[422021308,1778477451000,-200.0,0.00027397,2]
[422021293,1778477451000,-150.0,0.00026849,2]
[422021311,1778477451000,-1500.0,0.00027397,2]
[422021300,1778477451000,-2567.48161,0.0002701,2]
[422021357,1778477452000,-151.0,0.00027397,2]
[422021367,1778477452000,-151.0,0.00027397,2]
[422021368,1778477452000,-151.0,0.00027397,2]
[422021365,1778477452000,-151.0,0.00027397,2]
[422021366,1778477452000,-151.0,0.00027397,2]
[422021360,1778477452000,-151.0,0.00027397,2]
[422021362,1778477452000,-151.0,0.00027397,2]
[422021364,1778477452000,-151.0,0.00027397,2]
[422021359,1778477452000,-151.0,0.00027397,2]
[422021361,1778477452000,-151.0,0.00027397,2]
[422021363,1778477452000,-151.0,0.00027397,2]
[422021370,1778477452000,-151.0,0.00027397,2]
[422021379,1778477452000,-151.0,0.00027397,2]
[422021369,1778477452000,-151.0,0.00027397,2]
[422021373,1778477452000,-151.0,0.00027397,2]
[422021372,1778477452000,-151.0,0.00027397,2]
[422021380,1778477452000,-294.644554,0.00027397,2]
[422021374,1778477452000,-151.0,0.00027397,2]
[422021375,1778477452000,-151.0,0.00027397,2]
[422021383,1778477452000,-860.1,0.00027399,7]
[422021376,1778477452000,-151.0,0.00027397,2]
[422021384,1778477452000,-860.1,0.00027399,7]
[422021377,1778477452000,-151.0,0.00027397,2]
[422021381,1778477452000,-8810.03,0.00027397,10]
[422021353,1778477452000,-151.0,0.00027397,2]
[422021371,1778477452000,-151.0,0.00027397,2]
[422021358,1778477452000,-151.0,0.00027397,2]
[422021333,1778477452000,-151.0,0.00027397,2]
[422021351,1778477452000,-151.0,0.00027397,2]
[422021329,1778477452000,-258.12568,0.00027397,2]
[422021327,1778477452000,-151.0,0.00027397,2]
[422021328,1778477452000,-151.0,0.00027397,2]
[422021330,1778477452000,-151.0,0.00027397,2]
[422021331,1778477452000,-151.0,0.00027397,2]
[422021332,1778477452000,-151.0,0.00027397,2]
[422021334,1778477452000,-151.0,0.00027397,2]
[422021335,1778477452000,-151.0,0.00027397,2]
[422021336,1778477452000,-151.0,0.00027397,2]
[422021337,1778477452000,-151.0,0.00027397,2]
[422021338,1778477452000,-151.0,0.00027397,2]
[422021339,1778477452000,-217.398606,0.00027397,2]
[422021349,1778477452000,-151.0,0.00027397,2]
[422021340,1778477452000,-151.0,0.00027397,2]
[422021342,1778477452000,-151.0,0.00027397,2]
[422021343,1778477452000,-151.0,0.00027397,2]
[422021344,1778477452000,-151.0,0.00027397,2]
[422021345,1778477452000,-151.0,0.00027397,2]
[422021346,1778477452000,-151.0,0.00027397,2]
[422021347,1778477452000,-151.0,0.00027397,2]
[422021348,1778477452000,-151.0,0.00027397,2]
[422021352,1778477452000,-151.0,0.00027397,2]
[422021355,1778477452000,-151.0,0.00027397,2]
[422021356,1778477452000,-151.0,0.00027397,2]
[422021354,1778477452000,-267.677076,0.00027397,2]
[422021350,1778477452000,-151.0,0.00027397,2]
[422021341,1778477452000,-151.0,0.00027397,2]
[422021378,1778477452000,-151.0,0.00027397,2]
[422021382,1778477452000,-150.22640889,0.00027397,30]
[422021386,1778477452000,-860.1,0.00027399,7]
[422021414,1778477452000,-2000.0,0.00028069,2]
[422021412,1778477452000,-192.7242664,0.00028,60]
[422021415,1778477452000,-2000.0,0.00028069,2]
[422021421,1778477452000,-700.0,0.00028115,2]
[422021430,1778477452000,-395.0,0.00028153,2]
[422021429,1778477452000,-222.0,0.00028115,2]
[422021420,1778477452000,-700.0,0.00028115,2]
[422021422,1778477452000,-700.0,0.00028115,2]
[422021425,1778477452000,-700.0,0.00028115,2]
[422021423,1778477452000,-700.0,0.00028115,2]
[422021431,1778477452000,-477.0,0.00028163,2]
[422021424,1778477452000,-700.0,0.00028115,2]
[422021418,1778477452000,-2000.0,0.00028069,2]
[422021427,1778477452000,-700.0,0.00028115,2]
[422021428,1778477452000,-700.0,0.00028115,2]
[422021432,1778477452000,-500.0,0.0002817,2]
[422021434,1778477452000,-507.0,0.00028188,5]
[422021435,1778477452000,-150.0,0.00028192,2]
[422021438,1778477452000,-1114.78,0.000285,2]
[422021433,1778477452000,-1189.98540987,0.0002817,2]
[422021436,1778477452000,-150.0,0.000282,10]
[422021437,1778477452000,-775.9,0.00028267,2]
[422021439,1778477452000,-291131.9734557,0.0002865,2]
[422021441,1778477452000,-19561.9911352,0.0002865,2]
[422021442,1778477452000,-500.0,0.00028767,120]
[422021385,1778477452000,-860.1,0.00027399,7]
[422021426,1778477452000,-700.0,0.00028115,2]
[422021419,1778477452000,-1774.0,0.00028069,2]
[422021440,1778477452000,-3869.4168161,0.0002865,2]
[422021411,1778477452000,-200.0,0.00027948,2]
[422021413,1778477452000,-214.82098671,0.00028,10]
[422021387,1778477452000,-860.26359125,0.00027399,7]
[422021388,1778477452000,-515.4,0.000274,7]
[422021395,1778477452000,-400.0,0.0002749,2]
[422021393,1778477452000,-400.0,0.0002749,2]
[422021390,1778477452000,-46023.39,0.000274,7]
[422021394,1778477452000,-400.0,0.0002749,2]
[422021391,1778477452000,-400.0,0.0002749,2]
[422021392,1778477452000,-400.0,0.0002749,2]
[422021397,1778477452000,-400.0,0.0002749,2]
[422021396,1778477452000,-400.0,0.0002749,2]
[422021404,1778477452000,-151.0,0.00027671,7]
[422021398,1778477452000,-400.0,0.0002749,2]
[422021389,1778477452000,-277.9,0.000274,7]
[422021401,1778477452000,-13016.13837342,0.00027509,2]
[422021399,1778477452000,-400.0,0.0002749,2]
[422021409,1778477452000,-500.0,0.000278,7]
[422021417,1778477452000,-2000.0,0.00028069,2]
[422021416,1778477452000,-2000.0,0.00028069,2]
[422021408,1778477452000,-208.908557,0.00027671,7]
[422021410,1778477452000,-151.50816398,0.00027859,2]
[422021403,1778477452000,-200.0,0.00027671,2]
[422021402,1778477452000,-200.0,0.00027671,2]
[422021405,1778477452000,-151.0,0.00027671,7]
[422021406,1778477452000,-151.0,0.00027671,7]
[422021400,1778477452000,-326.0,0.0002749,2]
[422021407,1778477452000,-151.0,0.00027671,7]
[422021490,1778477453000,-497.0,0.00031509,30]
[422021489,1778477453000,-167.0,0.00031509,30]
[422021479,1778477453000,-150.0,0.00031081,2]
[422021471,1778477453000,-167.0,0.00030509,30]
[422021474,1778477453000,-267.0,0.00030526,30]
[422021475,1778477453000,-300.45281777,0.00030619,120]
[422021472,1778477453000,-497.0,0.00030509,30]
[422021478,1778477453000,-1096.39392924,0.00031067,2]
[422021469,1778477453000,-1114.78,0.000305,30]
[422021473,1778477453000,-158.0,0.00030509,30]
[422021470,1778477453000,-154.0,0.00030509,30]
[422021484,1778477453000,-1054.46,0.000314,7]
[422021481,1778477453000,-184.97,0.000312,7]
[422021482,1778477453000,-2894.02,0.000313,14]
[422021483,1778477453000,-1476.14135509,0.00031318,2]
[422021486,1778477453000,-700.0,0.0003147,2]
[422021487,1778477453000,-1000.0,0.000315,7]
[422021488,1778477453000,-154.0,0.00031509,30]
[422021485,1778477453000,-500.0,0.0003147,2]
[422021491,1778477453000,-158.0,0.00031509,30]
[422021493,1778477453000,-1054.46,0.000316,7]
[422021492,1778477453000,-267.0,0.00031526,30]
[422021476,1778477453000,-507.0,0.00030716,8]
[422021500,1778477453000,-177.15261301,0.00032,30]
[422021480,1778477453000,-160.0,0.000312,7]
[422021466,1778477453000,-277.9,0.000303,7]
[422021454,1778477453000,-152.0,0.00029499,4]
[422021467,1778477453000,-46023.39,0.000304,7]
[422021501,1778477453000,-515.4,0.00032,7]
[422021444,1778477453000,-270.00196956,0.00028767,120]
[422021450,1778477453000,-1223.0,0.00029375,2]
[422021449,1778477453000,-2207.12440892,0.00029,4]
[422021448,1778477453000,-556.86863729,0.00028822,2]
[422021445,1778477453000,-515.4,0.000288,7]
[422021443,1778477453000,-500.0,0.00028767,120]
[422021452,1778477453000,-1353.0,0.00029375,2]
[422021446,1778477453000,-277.9,0.000288,7]
[422021453,1778477453000,-507.0,0.00029452,7]
[422021447,1778477453000,-46023.39,0.000288,7]
[422021477,1778477453000,-202.63507,0.000309,4]
[422021451,1778477453000,-624.0,0.00029375,2]
[422021456,1778477453000,-8671.60542874,0.0003,30]
[422021458,1778477453000,-172335.38569867,0.0003013,7]
[422021459,1778477453000,-15821.75590734,0.0003013,2]
[422021461,1778477453000,-2894.02,0.000302,14]
[422021457,1778477453000,-214.73073128,0.0003,30]
[422021463,1778477453000,-919.900001,0.000302,2]
[422021464,1778477453000,-775.9,0.00030239,2]
[422021460,1778477453000,-296.778381,0.00030137,7]
[422021462,1778477453000,-640.099999,0.000302,2]
[422021465,1778477453000,-515.4,0.000303,7]
[422021468,1778477453000,-286.5,0.00030411,120]
[422021455,1778477453000,-150.0,0.00029601,2]
[422021498,1778477453000,-287.29122816,0.00032,120]
[422021497,1778477453000,-507.0,0.00031979,9]
[422021541,1778477453000,-400.0,0.00032597,2]
[422021525,1778477453000,-408.0,0.00032408,2]
[422021530,1778477453000,-497.0,0.00032509,30]
[422021528,1778477453000,-154.0,0.00032509,30]
[422021527,1778477453000,-1114.78,0.000325,30]
[422021532,1778477453000,-267.0,0.00032526,30]
[422021534,1778477453000,-3403.74400253,0.00032544,2]
[422021536,1778477453000,-451.0,0.00032554,2]
[422021537,1778477453000,-404.0,0.00032556,2]
[422021535,1778477453000,-392.0,0.00032552,2]
[422021538,1778477453000,-395.0,0.00032558,2]
[422021539,1778477453000,-392.0,0.00032584,2]
[422021540,1778477453000,-404.0,0.00032589,2]
[422021543,1778477453000,-358.0,0.00032602,2]
[422021544,1778477453000,-392.0,0.0003261,2]
[422021551,1778477453000,-404.0,0.00032644,2]
[422021545,1778477453000,-416.0,0.00032626,2]
[422021548,1778477453000,-150.0,0.00032636,2]
[422021547,1778477453000,-392.0,0.00032631,2]
[422021549,1778477453000,-393.0,0.00032638,2]
[422021550,1778477453000,-404.0,0.0003264,2]
[422021542,1778477453000,-404.0,0.000326,2]
[422021553,1778477453000,-393.0,0.00032651,2]
[422021552,1778477453000,-416.0,0.00032649,2]
[422021502,1778477453000,-277.9,0.00032,7]
[422021546,1778477453000,-400.0,0.00032627,2]
[422021531,1778477453000,-158.0,0.00032509,30]
[422021526,1778477453000,-277.0,0.00032468,2]
[422021533,1778477453000,-196.58836468,0.00032542,50]
[422021524,1778477453000,-152.0,0.00032391,5]
[422021494,1778477453000,-64960.3238614,0.00031862,2]
[422021495,1778477453000,-863.3835938,0.00031862,2]
[422021499,1778477453000,-277.49113174,0.00032,120]
[422021496,1778477453000,-4364.8702148,0.00031862,2]
[422021504,1778477453000,-208.15897961,0.00032,120]
[422021506,1778477453000,-212.21192677,0.00032,120]
[422021503,1778477453000,-6678.71778625,0.00032,7]
[422021507,1778477453000,-217.18166745,0.00032,120]
[422021529,1778477453000,-167.0,0.00032509,30]
[422021505,1778477453000,-1054.46,0.00032,7]
[422021513,1778477453000,-46023.39,0.000321,7]
[422021510,1778477453000,-1157.23306634,0.00032053,2]
[422021508,1778477453000,-182.92285388,0.00032,120]
[422021514,1778477453000,-160.0,0.000322,12]
[422021512,1778477453000,-4903.25754257,0.00032066,2]
[422021522,1778477453000,-624.0,0.00032375,2]
[422021509,1778477453000,-180.08984041,0.00032,120]
[422021521,1778477453000,-1223.0,0.00032375,2]
[422021519,1778477453000,-195.242,0.00032239,31]
[422021520,1778477453000,-2894.02,0.000323,14]
[422021523,1778477453000,-408.0,0.00032379,2]
[422021518,1778477453000,-2884.382,0.00032239,31]
[422021516,1778477453000,-160.0,0.000322,12]
[422021515,1778477453000,-160.0,0.000322,12]
[422021511,1778477453000,-3849.54614798,0.0003206,2]
[422021517,1778477453000,-775.9,0.0003221,5]
[422021597,1778477454000,-399.0,0.00032859,2]
[422021593,1778477454000,-357.0,0.00032846,2]
[422021594,1778477454000,-393.0,0.00032852,2]
[422021592,1778477454000,-395.0,0.00032841,2]
[422021591,1778477454000,-404.0,0.00032839,2]
[422021586,1778477454000,-385.0,0.00032816,2]
[422021589,1778477454000,-395.0,0.00032835,2]
[422021580,1778477454000,-392.0,0.00032786,2]
[422021588,1778477454000,-416.0,0.00032831,2]
[422021587,1778477454000,-392.0,0.00032822,2]
[422021596,1778477454000,-393.0,0.00032854,2]
[422021585,1778477454000,-250.0,0.00032815,7]
[422021595,1778477454000,-395.0,0.00032853,2]
[422021609,1778477454000,-163.15067,0.00032877,7]
[422021601,1778477454000,-700.0,0.0003287,2]
[422021600,1778477454000,-491.94017322,0.00032865,2]
[422021599,1778477454000,-318.0,0.00032864,2]
[422021602,1778477454000,-500.0,0.0003287,2]
[422021604,1778477454000,-392.0,0.00032876,2]
[422021605,1778477454000,-3986.0,0.00032877,2]
[422021606,1778477454000,-151.0,0.00032877,7]
[422021603,1778477454000,-3561.18050816,0.0003287,7]
[422021607,1778477454000,-151.0,0.00032877,7]
[422021610,1778477454000,-163.15067,0.00032877,7]
[422021608,1778477454000,-155.733885,0.00032877,7]
[422021584,1778477454000,-404.0,0.00032807,2]
[422021598,1778477454000,-408.0,0.00032864,2]
[422021590,1778477454000,-404.0,0.00032836,2]
[422021555,1778477454000,-392.0,0.00032678,2]
[422021583,1778477454000,-392.0,0.00032804,2]
[422021554,1778477454000,-228.0,0.00032662,2]
[422021556,1778477454000,-402.0,0.0003268,2]
[422021557,1778477454000,-404.0,0.0003268,2]
[422021558,1778477454000,-408.0,0.00032685,2]
[422021567,1778477454000,-404.0,0.00032738,2]
[422021566,1778477454000,-402.0,0.00032735,2]
[422021559,1778477454000,-402.0,0.00032699,2]
[422021565,1778477454000,-399.0,0.00032726,2]
[422021564,1778477454000,-400.0,0.00032723,2]
[422021563,1778477454000,-451.0,0.0003271,2]
[422021560,1778477454000,-416.0,0.00032703,2]
[422021562,1778477454000,-394.0,0.00032706,2]
[422021582,1778477454000,-402.0,0.00032794,2]
[422021561,1778477454000,-404.0,0.00032705,2]
[422021568,1778477454000,-392.0,0.00032739,2]
[422021572,1778477454000,-212.0,0.00032756,2]
[422021571,1778477454000,-381.0,0.00032754,2]
[422021570,1778477454000,-408.0,0.00032743,2]
[422021573,1778477454000,-416.0,0.00032758,2]
[422021576,1778477454000,-395.0,0.00032771,2]
[422021575,1778477454000,-400.0,0.00032768,2]
[422021574,1778477454000,-416.0,0.00032759,2]
[422021578,1778477454000,-404.0,0.00032771,2]
[422021577,1778477454000,-392.0,0.00032771,2]
[422021579,1778477454000,-400.0,0.00032784,2]
[422021581,1778477454000,-404.0,0.00032787,2]
[422021569,1778477454000,-404.0,0.00032739,2]
[422021611,1778477454000,-163.15067,0.00032877,7]
[422021668,1778477454000,-1700.0,0.00032897,60]
[422021614,1778477454000,-163.15067,0.00032877,7]
[422021641,1778477454000,-157.482155,0.00032877,7]
[422021645,1778477454000,-157.482155,0.00032877,7]
[422021644,1778477454000,-157.482155,0.00032877,7]
[422021642,1778477454000,-157.482155,0.00032877,7]
[422021643,1778477454000,-157.482155,0.00032877,7]
[422021649,1778477454000,-157.482155,0.00032877,7]
[422021651,1778477454000,-157.482155,0.00032877,7]
[422021654,1778477454000,-418.72,0.00032877,7]
[422021653,1778477454000,-157.482162,0.00032877,7]
[422021652,1778477454000,-157.482155,0.00032877,7]
[422021658,1778477454000,-1700.0,0.00032897,60]
[422021656,1778477454000,-416.0,0.00032886,2]
[422021637,1778477454000,-157.482155,0.00032877,7]
[422021655,1778477454000,-393.0,0.0003288,2]
[422021659,1778477454000,-1700.0,0.00032897,60]
[422021660,1778477454000,-1700.0,0.00032897,60]
[422021661,1778477454000,-1700.0,0.00032897,60]
[422021662,1778477454000,-1700.0,0.00032897,60]
[422021664,1778477454000,-1700.0,0.00032897,60]
[422021663,1778477454000,-1700.0,0.00032897,60]
[422021665,1778477454000,-1700.0,0.00032897,60]
[422021666,1778477454000,-1700.0,0.00032897,60]
[422021670,1778477454000,-1700.0,0.00032897,60]
[422021667,1778477454000,-1700.0,0.00032897,60]
[422021669,1778477454000,-1700.0,0.00032897,60]
[422021612,1778477454000,-163.15067,0.00032877,7]
[422021650,1778477454000,-157.482155,0.00032877,7]
[422021647,1778477454000,-157.482155,0.00032877,7]
[422021657,1778477454000,-590.11191507,0.00032886,2]
[422021646,1778477454000,-157.482155,0.00032877,7]
[422021640,1778477454000,-157.482155,0.00032877,7]
[422021624,1778477454000,-163.15067,0.00032877,7]
[422021613,1778477454000,-163.15067,0.00032877,7]
[422021617,1778477454000,-163.15067,0.00032877,7]
[422021616,1778477454000,-163.15067,0.00032877,7]
[422021615,1778477454000,-163.15067,0.00032877,7]
[422021618,1778477454000,-163.15067,0.00032877,7]
[422021620,1778477454000,-163.15067,0.00032877,7]
[422021619,1778477454000,-163.15067,0.00032877,7]
[422021621,1778477454000,-163.15067,0.00032877,7]
[422021623,1778477454000,-163.15067,0.00032877,7]
[422021622,1778477454000,-163.15067,0.00032877,7]
[422021626,1778477454000,-163.15067,0.00032877,7]
[422021625,1778477454000,-163.15067,0.00032877,7]
[422021627,1778477454000,-163.15067,0.00032877,7]
[422021630,1778477454000,-151.0,0.00032877,7]
[422021648,1778477454000,-157.482155,0.00032877,7]
[422021638,1778477454000,-157.482155,0.00032877,7]
[422021631,1778477454000,-151.0,0.00032877,7]
[422021635,1778477454000,-157.482155,0.00032877,7]
[422021636,1778477454000,-157.482155,0.00032877,7]
[422021639,1778477454000,-157.482155,0.00032877,7]
[422021629,1778477454000,-151.0,0.00032877,7]
[422021632,1778477454000,-151.0,0.00032877,7]
[422021634,1778477454000,-157.482155,0.00032877,7]
[422021633,1778477454000,-151.000002,0.00032877,7]
[422021628,1778477454000,-163.150676,0.00032877,7]
[422021709,1778477455000,-160.0,0.000332,16]
[422021716,1778477455000,-491.28029622,0.000335,2]
[422021715,1778477455000,-508.56426085,0.00033356,60]
[422021697,1778477455000,-212.21192677,0.00033,120]
[422021703,1778477455000,-261.0,0.00033,2]
[422021702,1778477455000,-300.0,0.00033,2]
[422021701,1778477455000,-300.0,0.00033,2]
[422021707,1778477455000,-2894.02,0.000332,14]
[422021698,1778477455000,-217.18166745,0.00033,120]
[422021708,1778477455000,-160.0,0.000332,16]
[422021719,1778477455000,-167.0,0.00033509,30]
[422021704,1778477455000,-152.0,0.00033104,7]
[422021717,1778477455000,-1054.46,0.000335,7]
[422021714,1778477455000,-900.0,0.00033356,60]
[422021720,1778477455000,-497.0,0.00033509,30]
[422021710,1778477455000,-160.0,0.000332,16]
[422021713,1778477455000,-500.0,0.00033356,60]